bitfinex-derivatives/quotes_SOLF0:USTF0_20241217
["timestamp","ask_amount","ask_price","bid_price","bid_amount"]
[1734470812406,11.2074829,226.23,226.2,5.28813942]
[1734470812712,5.28813942,226.28,226.21,2.16]
[1734470813510,7.49803942,226.28,226.25,2.2101]
[1734470814009,18.71219927,226.28,226.25,2.2101]
[1734470814206,11.21415985,226.27,226.25,2.2101]
[1734470814402,7.49803942,226.28,226.25,2.2101]
[1734470814403,11.21415985,226.26,226.25,2.2101]
[1734470815712,7.49803942,226.28,226.25,2.2101]
[1734470815915,11.21415985,226.26,226.25,2.2101]
[1734470816317,7.49803942,226.28,226.25,2.2101]
[1734470817414,18.70470128,226.28,226.25,2.2101]
[1734470817718,11.20666186,226.27,226.25,2.2101]
[1734470818017,11.20666186,226.26,226.25,2.2101]
[1734470818212,7.49803942,226.28,226.25,2.2101]
[1734470819013,25.24285057,226.29,226.21,2.16]
[1734470819212,11.20666186,226.28,226.26,2.2099]
[1734470819413,11.20666186,226.27,226.26,4.3699]
[1734470820015,11.20666186,226.27,226.26,2.16]
[1734470820214,5.28813942,226.29,226.26,4.37]
[1734470820717,16.49480128,226.3,226.27,2.2098]
[1734470820917,11.20666186,226.29,226.27,2.2098]
[1734470821221,11.20666186,226.28,226.27,2.2098]
[1734470821518,11.20666186,226.28,226.26,2.16]
[1734470821519,5.28813942,226.3,226.26,2.16]
[1734470821713,5.28813942,226.3,226.28,2.2098]
[1734470822515,11.18889777,226.32,226.26,2.16]
[1734470822713,0.2802,226.33,226.26,2.16]
[1734470822714,11.18889777,226.31,226.26,2.16]
[1734470823018,11.18889777,226.3,226.26,2.16]
[1734470823225,5.56833942,226.33,226.26,2.16]
[1734470823721,0.2802,226.33,226.32,2.2094]
[1734470823927,0.2802,226.33,226.32,4.3694]
[1734470824923,25.19030584,226.42,226.33,5.28813942]
[1734470825116,25.19030584,226.42,226.32,2.16]
[1734470825117,11.17705351,226.41,226.35,5.28813942]
[1734470825318,8.9947481,226.49,226.35,5.28813942]
[1734470825319,5.28813942,226.43,226.35,5.28813942]
[1734470825623,5.28813942,226.43,226.37,5.28813942]
[1734470825823,5.28813942,226.43,226.38,2.16]
[1734470827214,3.9861,226.51,226.38,2.16]
[1734470827215,25.15160309,226.48,226.38,2.16]
[1734470827416,1.8261,226.51,226.22,50.56]
[1734470827417,5.28813942,226.39,226.22,50.56]
[1734470827723,5.28813942,226.35,226.28,5.28813942]
[1734470827924,25.13878627,226.45,226.3,5.28813942]
[1734470828219,5.28813942,226.39,226.32,5.28813942]
[1734470828518,5.28813942,226.39,226.33,2.16]
[1734470828922,5.28813942,226.37,226.33,2.16]
[1734470829224,5.28813942,226.35,226.33,2.16]
[1734470829419,5.28813942,226.35,226.32,4.3693]
[1734470829620,5.28813942,226.35,226.32,2.16]
[1734470829820,5.28813942,226.39,226.32,7.44813942]
[1734470830226,5.28813942,226.37,226.32,2.16]
[1734470830427,1.9583,226.46,226.32,2.16]
[1734470830622,5.28813942,226.39,226.38,2.2089]
[1734470833023,5.28813942,226.41,226.38,2.2089]
[1734470836729,11.13521039,226.45,226.39,2.2088]
[1734470836930,5.28813942,226.43,226.39,2.2088]
[1734470837927,11.11472767,226.49,226.42,5.28813942]
[1734470838133,2.2079,226.49,226.44,7.49633942]
[1734470838324,2.2079,226.49,226.45,2.16]
[1734470839328,7.11423942,226.51,226.45,2.16]
[1734470839522,2.2077,226.5,226.45,2.16]
[1734470839820,13.31699766,226.5,226.45,2.16]
[1734470840429,13.31699766,226.5,226.46,2.2081]
[1734470840931,7.49593942,226.49,226.45,4.3681]
[1734470842531,5.28813942,226.47,226.45,2.16]
[1734470843426,182.47514667,226.66,226.46,5.28813942]
[1734470843628,50.54,226.83,226.46,5.28813942]
[1734470843629,1.8977,226.7,226.57,5.28813942]
[1734470843834,1.8977,226.7,226.63,2.2064]
[1734470844030,5.28813942,226.66,226.63,2.2064]
[1734470844327,5.28813942,226.66,226.61,2.16]
[1734470844731,5.28813942,226.66,226.63,2.2064]
[1734470845031,5.28813942,226.68,226.61,2.16]
[1734470845231,1.8033,226.73,226.63,5.28813942]
[1734470845429,5.28813942,226.7,226.67,2.2059]
[1734470845635,5.28813942,226.7,226.63,5.28813942]
[1734470846336,5.28813942,226.71,226.63,5.28813942]
[1734470846733,5.28813942,226.71,226.7,2.2057]
[1734470847931,1.8033,226.81,226.69,5.28813942]
[1734470848335,5.28813942,226.78,226.71,5.28813942]
[1734470848533,1.8033,226.81,226.73,5.28813942]
[1734470848534,5.28813942,226.8,226.73,5.28813942]
[1734470848734,5.28813942,226.8,226.75,2.2052]
[1734470849032,5.28813942,226.8,226.73,2.16]
[1734470849435,1.8033,226.81,226.79,2.2049]
[1734470849831,7.15120081,226.82,226.75,5.28813942]
[1734470849832,1.8977,226.82,226.75,5.28813942]
[1734470850035,1.8977,226.82,226.81,2.2047]
[1734470850236,2.204,226.88,226.77,5.28813942]
[1734470850436,1.7994,226.89,226.77,5.28813942]
[1734470850437,5.28813942,226.86,226.77,5.28813942]
[1734470850734,5.28813942,226.86,226.68,1.8397]
[1734470850735,3.9765,226.87,226.78,2.16]
[1734470850939,5.28813942,226.85,226.78,5.28813942]
[1734470851138,5.28813942,226.85,226.82,2.2045]
[1734470851438,5.28813942,226.85,226.78,5.28813942]
[1734470851939,9.27664627,226.87,226.82,2.2045]
[1734470853542,9.27664627,226.87,226.77,2.16]
[1734470853543,8.21891147,226.83,226.76,2.16]
[1734470853842,1.9679,226.88,226.85,2.2043]
[1734470854035,1.7994,226.89,226.77,2.16]
[1734470854036,1.7994,226.89,226.82,8.21891147]
[1734470854340,1.9496,226.93,226.83,2.16]
[1734470854531,1.9496,226.93,226.85,8.21891147]
[1734470855234,1.9496,226.93,226.88,2.2039]
[1734470855439,1.9496,226.93,226.85,8.21891147]
[1734470855939,1.9496,226.93,226.87,2.204]
[1734470856441,4.1531,226.93,226.86,2.2042]
[1734470856838,4.1531,226.93,226.83,2.16]
[1734470857036,4.1531,226.93,226.87,2.2041]
[1734470858240,1.9496,226.93,226.87,2.2041]
[1734470858436,1.9496,226.93,226.83,2.16]
[1734470858641,1.9496,226.93,226.87,2.204]
[1734470858942,1.9496,226.93,226.83,2.16]
[1734470860241,2.69462,226.94,226.84,8.21891147]
[1734470860440,2.69462,226.94,226.87,2.2041]
[1734470860646,2.2036,226.93,226.87,2.2041]
[1734470863349,2.69462,226.94,226.88,2.204]
[1734470863547,2.69462,226.94,226.88,4.364]
[1734470864849,0.49122,226.94,226.88,2.16]
[1734470865044,0.49122,226.94,226.92,2.2036]
[1734470865258,0.49122,226.94,226.88,2.16]
[1734470866550,0.49122,226.94,226.9,2.2037]
[1734470867843,0.49122,226.94,226.91,2.2037]
[1734470868050,0.49122,226.94,226.88,2.16]
[1734470868848,0.49122,226.94,226.93,2.2035]
[1734470869044,0.49122,226.94,226.93,4.3635]
[1734470871760,0.49122,226.94,226.63,6.6191]
[1734470871953,0.49122,226.94,226.8,8.21891147]
[1734470872152,0.49122,226.94,226.84,2.2044]
[1734470872360,0.49122,226.94,226.81,2.16]
[1734470872756,2.2038,226.9,226.81,2.16]
[1734470873158,2.2038,226.9,226.86,2.2042]
[1734470873457,2.2038,226.9,226.86,4.3642]
[1734470874059,2.2038,226.9,226.86,2.16]
[1734470874455,2.2043,226.85,226.78,2.16]
[1734470874664,8.21891147,226.92,226.78,10.37891147]
[1734470874859,0.49122,226.94,226.84,8.21891147]
[1734470875064,0.49122,226.94,226.89,2.2038]
[1734470875363,0.49122,226.94,226.9,2.16]
[1734470875564,2.2034,226.95,226.9,2.16]
[1734470875758,2.2034,226.94,226.9,2.16]
[1734470877462,2.2033,226.96,226.91,2.2037]
[1734470877661,1.8933,226.99,226.9,2.16]
[1734470878159,1.8933,226.99,226.9,4.3638]
[1734470878160,2.2034,226.95,226.9,4.3638]
[1734470880465,1.8933,226.99,226.66,4.4122]
[1734470880466,8.21891147,226.91,226.66,4.4122]
[1734470880665,1.8933,226.99,226.8,8.21891147]
[1734470880666,8.21891147,226.94,226.8,8.21891147]
[1734470880965,8.21891147,226.97,226.83,8.21891147]
[1734470881166,8.21891147,226.97,226.84,2.16]
[1734470881561,2.2035,226.93,226.88,2.2039]
[1734470881866,2.2035,226.93,226.89,2.16]
[1734470882071,8.21891147,226.97,226.89,2.16]
[1734470882471,2.2036,226.92,226.89,2.16]
[1734470883566,2.2034,226.95,226.88,2.16]
[1734470883767,11.02755372,226.96,226.88,2.16]
[1734470883968,8.21891147,226.97,226.88,2.16]
[1734470884166,8.21891147,226.97,226.82,1.956]
[1734470884167,8.21891147,226.91,226.82,2.16]
[1734470884368,8.21891147,226.91,226.77,8.21891147]
[1734470884562,8.21891147,226.88,226.81,2.16]
[1734470884765,2.2047,226.81,226.79,2.16]
[1734470885073,2.2047,226.81,226.77,2.16]
[1734470885373,2.2046,226.83,226.77,4.365]
[1734470885666,11.05537335,226.87,226.77,4.365]
[1734470885866,8.21891147,226.85,226.75,2.2052]
[1734470886073,8.21891147,226.82,226.62,24.93402271]
[1734470886269,8.21891147,226.82,226.66,5.5751]
[1734470886465,2.2046,226.82,226.73,2.2054]
[1734470886677,11.05537335,226.86,226.73,2.16]
[1734470886869,19.27428482,226.85,226.73,2.16]
[1734470887069,8.21891147,226.78,226.5,4.4153]
[1734470887374,8.21891147,226.78,226.63,3.5995]
[1734470887667,8.21891147,226.78,226.64,2.16]
[1734470887865,2.2056,226.72,226.67,2.206]
[1734470888472,2.2056,226.72,226.65,5.26896159]
[1734470888673,2.2056,226.72,226.66,2.2061]
[1734470889175,2.2054,226.74,226.66,2.2061]
[1734470889365,11.05537335,226.77,226.66,2.2061]
[1734470889568,11.05537335,226.76,226.66,2.2061]
[1734470889873,11.05537335,226.76,226.63,3.5995]
[1734470889874,19.27428482,226.75,226.63,5.8058]
[1734470890072,11.05537335,226.74,226.64,2.16]
[1734470890271,11.05537335,226.73,226.64,2.16]
[1734470890472,19.27428482,226.72,226.59,8.21891147]
[1734470890771,11.05537335,226.71,226.6,2.16]
[1734470890977,11.05537335,226.71,226.59,13.47271023]
[1734470891178,11.05537335,226.71,226.6,2.16]
[1734470892079,2.206,226.67,226.6,4.3667]
[1734470893567,2.206,226.67,226.61,2.2066]
[1734470893767,2.206,226.68,226.61,2.2066]
[1734470893969,11.05537335,226.71,226.62,8.21891147]
[1734470894271,8.21891147,226.75,226.65,2.2061]
[1734470894573,2.2056,226.72,226.65,4.3661]
[1734470895677,2.2057,226.71,226.65,2.16]
[1734470896477,2.2057,226.71,226.65,4.3662]
[1734470897380,2.2055,226.73,226.67,2.206]
[1734470897976,2.2056,226.71,226.65,2.2061]
[1734470898176,2.2056,226.71,226.66,2.16]
[1734470898974,10.42421147,226.75,226.69,2.2058]
[1734470899178,10.42421147,226.75,226.66,2.16]
[1734470899579,8.21891147,226.75,226.69,2.2058]
[1734470899779,2.2055,226.72,226.66,2.16]
[1734470900082,2.2055,226.72,226.67,2.2059]
[1734470900481,2.2055,226.72,226.66,2.16]
[1734470901087,2.2055,226.73,226.68,2.2059]
[1734470903585,7.39684248,226.82,226.66,2.16]
[1734470903785,8.21891147,226.79,226.66,2.16]
[1734470904886,2.2052,226.76,226.72,2.2055]
[1734470906087,2.2051,226.77,226.73,2.2054]
[1734470906682,2.205,226.78,226.73,2.2054]
[1734470907993,2.2051,226.77,226.73,4.3654]
[1734470908689,8.21891147,226.79,226.73,4.3654]
[1734470909396,8.21891147,226.76,226.7,2.16]
[1734470910296,2.2054,226.74,226.7,4.3657]
[1734470910695,8.21891147,226.76,226.7,2.16]
[1734470910989,2.2053,226.75,226.71,2.2056]
[1734470911993,2.2053,226.75,226.72,2.2055]
[1734470912596,5.23684248,226.82,226.74,2.2053]
[1734470912791,8.21891147,226.8,226.74,2.2053]
[1734470914194,2.205,226.78,226.74,2.2053]
[1734470914888,2.2049,226.79,226.75,2.2052]
[1734470915891,10.42371147,226.8,226.76,2.2051]
[1734470916591,2.2047,226.81,226.7,2.16]
[1734470916793,8.21891147,226.83,226.71,5.9691]
[1734470916999,8.21891147,226.83,226.72,1.9115]
[1734470917200,11.114484,226.84,226.72,1.9115]
[1734470917499,2.2046,226.82,226.78,2.2049]
[1734470917699,2.2046,226.82,226.78,4.3649]
[1734470918194,8.62198147,226.85,226.82,2.2046]
[1734470918195,0.40307,226.85,226.82,2.2046]
[1734470920803,0.40307,226.85,226.83,2.16]
[1734470924810,2.2041,226.87,226.83,4.3645]
[1734470928007,5.25891681,226.85,226.83,4.3645]
[1734470929009,2.2041,226.87,226.83,4.3645]
[1734470929214,11.14999111,226.9,226.83,7.41891681]
[1734470929407,5.25891681,226.88,226.83,7.41891681]
[1734470930509,5.25891681,226.9,226.83,7.41891681]
[1734470931015,2.44971,226.97,226.87,5.25891681]
[1734470931016,5.25891681,226.93,226.87,5.25891681]
[1734470931308,16.41393352,226.93,226.88,2.16]
[1734470931511,5.25891681,226.93,226.9,2.2038]
[1734470931814,7.46241681,226.93,226.9,2.2038]
[1734470932005,2.2035,226.93,226.9,2.2038]
[1734470932713,13.35353508,226.95,226.91,2.2037]
[1734470932912,8.72273769,226.97,226.91,2.2037]
[1734470933112,8.72273769,226.97,226.88,2.16]
[1734470934805,2.2034,226.95,226.88,2.16]
[1734470935205,11.13642467,226.96,226.84,5.7436]
[1734470935409,2.204,226.88,226.84,8.234]
[1734470935913,2.204,226.88,226.84,6.3118]
[1734470936509,2.2041,226.87,226.84,6.3118]
[1734470937410,2.204,226.88,226.85,2.2043]
[1734470937607,2.204,226.88,226.81,2.16]
[1734470937608,8.21152769,226.88,226.81,2.16]
[1734470938713,2.2044,226.85,226.81,2.16]
[1734470939506,2.2042,226.86,226.83,2.2045]
[1734470940512,2.2048,226.8,226.66,50.44]
[1734470940819,8.21152769,226.82,226.72,4.1141]
[1734470941206,2.2051,226.77,226.72,4.1141]
[1734470942609,2.2051,226.77,226.73,2.2054]
[1734470943113,8.21152769,226.82,226.72,9.34870538]
[1734470943311,8.21152769,226.85,226.72,7.18870538]
[1734470943508,8.21152769,226.85,226.73,2.16]
[1734470944213,2.2047,226.81,226.77,2.205]
[1734470944518,8.21152769,226.88,226.78,2.16]
[1734470944816,8.21152769,226.88,226.79,2.16]
[1734470946316,2.2045,226.83,226.79,2.16]
[1734470946908,2.2045,226.83,226.79,4.3648]
[1734470947116,2.2046,226.82,226.79,2.16]
[1734470948414,2.2047,226.81,226.79,2.16]
[1734470949621,2.2047,226.81,226.77,2.14]
[1734470950123,2.2045,226.83,226.77,2.14]
[1734470950322,8.21152769,226.82,226.77,2.14]
[1734470950723,8.21152769,226.79,226.73,2.14]
[1734470951317,2.2052,226.76,226.73,2.14]
[1734470951725,11.14922419,226.78,226.73,2.14]
[1734470951929,8.21152769,226.79,226.73,2.14]
[1734470952918,10.41642769,226.79,226.74,2.2053]
[1734470953124,11.14896772,226.78,226.67,3.7343]
[1734470953319,11.14896772,226.77,226.67,3.7343]
[1734470953623,8.21152769,226.76,226.68,7.32106011]
[1734470953827,8.21152769,226.76,226.69,2.16]
[1734470954026,8.21152769,226.76,226.67,1.8452]
[1734470954221,2.2056,226.71,226.67,2.206]
[1734470954416,2.2056,226.71,226.67,4.366]
[1734470956025,8.21152769,226.73,226.67,4.366]
[1734470956229,8.21152769,226.73,226.67,2.16]
[1734470956526,8.21152769,226.73,226.66,4.3661]
[1734470957428,2.2058,226.7,226.66,4.3661]
[1734470958128,2.2058,226.7,226.66,2.2061]
[1734470960229,8.21152769,226.73,226.65,2.16]
[1734470960434,8.21152769,226.7,226.65,2.16]
[1734470961126,8.21152769,226.67,226.57,1.9694]
[1734470961531,2.2063,226.64,226.61,2.2065]
[1734470962029,5.26951006,226.63,226.61,2.2065]
[1734470962233,5.26951006,226.63,226.6,2.2067]
[1734470962732,5.26951006,226.61,226.52,1.9703]
[1734470962929,5.26951006,226.58,226.53,2.16]
[1734470963429,5.26951006,226.58,226.56,2.2071]
[1734470963828,2.2067,226.61,226.55,2.16]
[1734470964029,8.23427454,226.67,226.55,2.16]
[1734470964333,2.2062,226.65,226.55,2.16]
[1734470965231,2.2062,226.65,226.61,2.2065]
[1734470966329,2.2062,226.65,226.6,2.16]
[1734470966330,8.23427454,226.69,226.6,2.16]
[1734470966533,2.2061,226.67,226.6,2.16]
[1734470966735,8.23427454,226.69,226.6,2.16]
[1734470967034,2.2059,226.68,226.6,2.16]
[1734470967536,8.23427454,226.69,226.6,2.16]
[1734470968433,2.2061,226.66,226.62,2.2064]
[1734470970635,2.2061,226.66,226.6,2.16]
[1734470971134,8.23427454,226.69,226.6,2.16]
[1734470971335,2.2063,226.65,226.6,2.16]
[1734470972035,2.2063,226.64,226.61,2.2066]
[1734470972429,8.23427454,226.69,226.61,2.2066]
[1734470974642,8.23427454,226.69,226.6,4.3667]
[1734470975245,2.2063,226.65,226.6,4.3667]
[1734470976147,8.23427454,226.69,226.6,4.3667]
[1734470976148,2.2063,226.64,226.6,4.3667]
[1734470979748,2.2063,226.64,226.61,2.2066]
[1734470980952,2.2066,226.62,226.52,10.20457454]
[1734470981148,8.23427454,226.63,226.53,2.14]
[1734470981355,8.23427454,226.63,226.54,2.14]
[1734470981548,8.23427454,226.6,226.54,2.14]
[1734470981751,2.207,226.57,226.55,2.14]
[1734470982058,8.23427454,226.6,226.55,2.14]
[1734470982354,2.207,226.57,226.54,2.14]
[1734470982549,8.23427454,226.57,226.49,3.8589]
[1734470982748,2.2072,226.55,226.51,2.2076]
[1734470983447,2.2073,226.54,226.51,2.2076]
[1734470983950,2.2073,226.54,226.5,2.14]
[1734470983951,5.27405477,226.53,226.5,2.14]
[1734470984149,5.27405477,226.53,226.52,2.2075]
[1734470984546,7.48125477,226.55,226.52,2.2075]
[1734470985354,5.27405477,226.55,226.52,2.2075]
[1734470986655,2.2074,226.54,226.5,4.3476]
[1734470986854,2.2074,226.54,226.5,2.14]
[1734470987047,2.2074,226.54,226.49,5.29681446]
[1734470987250,5.27405477,226.53,226.47,5.27405477]
[1734470987451,5.27405477,226.53,226.5,2.14]
[1734470987957,7.48155477,226.53,226.5,2.14]
[1734470989048,7.48155477,226.53,226.49,2.2078]
[1734470989253,7.48155477,226.53,226.49,4.3478]
[1734470989551,5.27405477,226.53,226.51,2.2075]
[1734470989951,5.27405477,226.53,226.49,2.14]
[1734470991454,5.27405477,226.53,226.5,2.2076]
[1734470995963,5.27405477,226.53,226.49,2.14]
[1734470996159,7.48165477,226.51,226.49,2.14]
[1734470996761,7.48165477,226.51,226.48,2.16]
[1734470997865,2.2078,226.5,226.48,2.16]
[1734470998059,5.27405477,226.49,226.48,2.16]
[1734470998462,7.48185477,226.49,226.46,2.16]
[1734470998862,5.27405477,226.49,226.43,1.8688]
[1734470999063,5.27405477,226.47,226.44,2.16]
[1734470999367,5.27405477,226.45,226.4,1.8274]
[1734470999565,5.27405477,226.45,226.41,4.3686]
[1734470999566,2.2083,226.44,226.41,4.3686]
[1734470999867,5.27405477,226.45,226.41,2.16]
[1734471000259,11.09695728,226.56,226.44,5.27405477]
[1734471000463,5.42235987,226.59,226.44,5.27405477]
[1734471000761,5.27405477,226.52,226.47,2.2079]
[1734471000961,5.27405477,226.52,226.48,2.16]
[1734471001567,5.27405477,226.52,226.51,2.2076]
[1734471002369,5.27405477,226.52,226.5,2.2077]
[1734471002661,5.27405477,226.52,226.48,2.16]
[1734471003068,5.27405477,226.52,226.51,2.2076]
[1734471003268,18.54395273,226.71,226.5,5.27405477]
[1734471003468,5.27405477,226.58,226.5,5.27405477]
[1734471004166,5.27405477,226.58,226.52,5.27405477]
[1734471004366,5.27405477,226.58,226.56,2.2071]
[1734471004565,11.12765797,226.65,226.54,5.27405477]
[1734471004765,5.27405477,226.61,226.54,5.27405477]
[1734471004965,2.2064,226.63,226.58,2.2068]
[1734471005159,5.27405477,226.62,226.59,2.16]
[1734471005359,11.13471885,226.67,226.59,2.16]
[1734471005568,5.27405477,226.62,226.6,2.2067]
[1734471006664,5.27405477,226.62,226.61,2.2066]
[1734471007266,2.2061,226.67,226.62,2.2065]
[1734471007466,5.27405477,226.63,226.62,2.2065]
[1734471008569,5.6918,226.74,226.64,2.2062]
[1734471008570,2.2056,226.72,226.64,2.2062]
[1734471008764,2.2056,226.72,226.65,2.16]
[1734471008765,5.27405477,226.68,226.65,2.16]
[1734471010573,5.27405477,226.68,226.66,2.2061]
[1734471012672,5.27405477,226.68,226.67,2.206]
[1734471013067,5.27405477,226.7,226.68,2.2059]
[1734471016775,5.27405477,226.7,226.65,2.16]
[1734471016979,5.27405477,226.66,226.64,2.14]
[1734471018977,2.2058,226.7,226.64,2.14]
[1734471019180,5.27405477,226.68,226.64,2.14]
[1734471019382,5.27405477,226.68,226.65,2.2062]
[1734471019779,11.1259346,226.74,226.64,2.14]
[1734471019973,11.1259346,226.74,226.61,2.2065]
[1734471019974,5.27405477,226.65,226.61,2.2065]
[1734471020180,5.27405477,226.62,226.59,2.14]
[1734471020381,5.27405477,226.62,226.58,2.14]
[1734471021276,5.27405477,226.62,226.59,2.14]
[1734471021479,5.27405477,226.62,226.59,4.3468]
[1734471023081,5.27405477,226.62,226.6,2.2067]
[1734471023687,5.27405477,226.62,226.59,4.3468]
[1734471023874,7.48055477,226.62,226.59,2.14]
[1734471025383,5.27405477,226.6,226.57,2.2069]
[1734471025579,5.27405477,226.58,226.57,2.14]
[1734471026180,7.48095477,226.58,226.57,2.14]
[1734471026479,2.2065,226.63,226.57,2.14]
[1734471026680,1.9448,226.67,226.57,2.14]
[1734471026681,5.27405477,226.62,226.57,2.14]
[1734471028487,7.48065477,226.62,226.58,2.2068]
[1734471028678,2.2066,226.62,226.58,2.2068]
[1734471028986,5.27405477,226.63,226.57,2.14]
[1734471029580,11.1371016,226.68,226.61,5.27405477]
[1734471029789,2.45079,226.75,226.62,2.14]
[1734471029991,5.27405477,226.63,226.6,2.2066]
[1734471030189,5.27405477,226.63,226.61,2.14]
[1734471031091,7.48025477,226.65,226.61,4.3466]
[1734471034689,5.27405477,226.63,226.61,2.14]
[1734471036898,5.27405477,226.63,226.61,4.3466]
[1734471037099,7.48025477,226.65,226.61,2.14]
[1734471038795,5.27405477,226.63,226.61,2.14]
[1734471039392,5.27405477,226.63,226.61,4.3465]
[1734471043192,2.2066,226.62,226.52,5.34788269]
[1734471043393,5.27405477,226.6,226.53,7.41405477]
[1734471043802,5.27405477,226.6,226.59,2.2069]
[1734471044096,5.27405477,226.6,226.58,2.14]
[1734471044602,5.27405477,226.6,226.52,10.62193746]
[1734471044898,5.27405477,226.62,226.54,5.27405477]
[1734471045098,5.27405477,226.62,226.59,2.2068]
[1734471045401,5.27405477,226.62,226.6,2.14]
[1734471045802,7.48055477,226.62,226.6,2.14]
[1734471046403,2.2066,226.61,226.6,2.14]
[1734471051908,2.207,226.57,226.52,5.34788269]
[1734471052110,2.207,226.57,226.53,2.14]
[1734471052510,2.207,226.57,226.54,2.2073]
[1734471052906,2.207,226.57,226.53,2.14]
[1734471053209,5.27405477,226.54,226.52,2.14]
[1734471053508,5.27405477,226.54,226.48,2.14]
[1734471053708,5.27405477,226.5,226.46,5.33858185]
[1734471053905,5.27405477,226.5,226.47,4.3479]
[1734471054102,25.1951371,226.58,226.47,2.14]
[1734471054411,5.27405477,226.56,226.48,5.27405477]
[1734471054615,5.7998,226.65,226.5,5.27405477]
[1734471054803,5.27405477,226.57,226.5,5.27405477]
[1734471055001,25.20078357,226.64,226.5,5.27405477]
[1734471055206,7.48105477,226.58,226.54,2.2072]
[1734471055404,5.27405477,226.58,226.54,2.14]
[1734471055905,2.2071,226.57,226.54,4.3473]
[1734471056102,11.18394481,226.59,226.54,2.14]
[1734471056304,5.27405477,226.59,226.54,2.14]
[1734471057506,7.48095477,226.59,226.56,2.2071]
[1734471058013,5.27405477,226.59,226.54,2.14]
[1734471058307,2.2069,226.58,226.55,2.2072]
[1734471059509,5.27405477,226.59,226.56,2.2071]
[1734471059904,5.27405477,226.59,226.54,2.14]
[1734471060413,2.207,226.58,226.55,2.2072]
[1734471060610,5.27405477,226.57,226.54,2.14]
[1734471060910,5.27405477,226.55,226.54,2.14]
[1734471061110,7.48125477,226.55,226.54,2.14]
[1734471062512,5.27405477,226.55,226.44,1.8759]
[1734471062708,2.14,226.62,226.46,2.208]
[1734471062907,5.27405477,226.5,226.45,7.57152503]
[1734471063307,5.27405477,226.5,226.45,5.43152503]
[1734471063503,5.27405477,226.48,226.45,2.2081]
[1734471063712,5.27405477,226.48,226.45,4.3481]
[1734471064108,7.48195477,226.48,226.45,4.3481]
[1734471065114,5.27405477,226.48,226.45,2.14]
[1734471065514,5.27405477,226.46,226.45,2.14]
[1734471066010,5.27405477,226.46,226.41,2.2086]
[1734471066011,7.48215477,226.46,226.41,2.2086]
[1734471066212,5.27405477,226.46,226.42,2.14]
[1734471067111,5.838,226.56,226.42,2.14]
[1734471067112,5.27405477,226.44,226.42,2.14]
[1734471067512,5.838,226.56,226.42,2.14]
[1734471067513,11.1729295,226.53,226.42,2.14]
[1734471067714,5.27405477,226.49,226.42,2.14]
[1734471067913,5.27405477,226.49,226.43,5.27405477]
[1734471069516,5.27405477,226.49,226.46,2.208]
[1734471069711,5.27405477,226.49,226.47,2.14]
[1734471070115,5.27405477,226.51,226.47,2.14]
[1734471070818,5.27405477,226.51,226.49,2.2078]
[1734471072520,5.27405477,226.51,226.48,2.2079]
[1734471072722,7.48165477,226.51,226.48,2.2079]
[1734471073022,5.27405477,226.51,226.48,2.2079]
[1734471073224,7.48195477,226.49,226.47,2.14]
[1734471073519,5.27405477,226.49,226.47,2.14]
[1734471074217,2.2081,226.46,226.43,2.2084]
[1734471074415,5.27405477,226.44,226.43,2.14]
[1734471075415,5.27405477,226.44,226.32,3.9119]
[1734471075613,5.27405477,226.41,226.32,3.9119]
[1734471075917,5.27405477,226.41,226.33,7.41405477]
[1734471076116,7.48275477,226.41,226.38,2.2089]
[1734471076425,7.48275477,226.41,226.38,4.3489]
[1734471076617,7.48275477,226.41,226.38,2.14]
[1734471079713,7.48275477,226.41,226.37,2.2089]
[1734471079917,7.48275477,226.41,226.38,2.14]
[1734471080119,7.48275477,226.41,226.38,4.3488]